fUSD/lending_fUSD_20250620
["ID","MTS","AMOUNT","RATE_DAILY","PERIOD"]
[366702497,1750415531881,-574.02,0.00026575,4]
[366702498,1750415531893,-18649.49,0.00026575,4]
[366702499,1750415531904,-490.0,0.00026575,4]
[366702500,1750415531916,-11431.71,0.00026575,4]
[366702501,1750415531926,-662.4,0.00026575,4]
[366702502,1750415531939,-490.0,0.00026575,4]
[366702503,1750415531951,-490.0,0.00026575,4]
[366702504,1750415531962,-2766.75,0.00026575,4]
[366702505,1750415531973,-1747.3,0.00026575,4]
[366702506,1750415531984,-490.0,0.00026575,4]
[366702507,1750415531995,-1639.8,0.00026575,4]
[366702508,1750415532005,-490.0,0.00026575,4]
[366702509,1750415532016,-521.31,0.00026575,4]
[366702510,1750415532026,-365.27082462,0.00026575,4]
[366702511,1750415532037,-641.47,0.00026575,4]
[366702512,1750415532048,-1452.7,0.00026575,4]
[366702513,1750415532058,-490.0,0.00026575,4]
[366702514,1750415532069,-490.0,0.00026575,4]
[366702515,1750415532079,-766.28,0.00026575,4]
[366702516,1750415532090,-1528.81,0.00026575,4]
[366702517,1750415532117,-2442.89,0.00026575,4]
[366702518,1750415532128,-521.70870442,0.00026575,4]
[366702519,1750415532139,-490.0,0.00026575,4]
[366702520,1750415532150,-490.0,0.00026575,4]
[366702521,1750415532162,-974.85,0.00026575,4]
[366702522,1750415532174,-525.8,0.00026575,4]
[366702523,1750415532184,-655.26,0.00026575,4]
[366702524,1750415532198,-490.0,0.00026575,4]
[366702525,1750415532211,-490.0,0.00026575,4]
[366702526,1750415532222,-490.0,0.00026575,4]
[366702527,1750415532233,-6155.02,0.00026575,4]
[366702528,1750415532244,-490.0,0.00026575,4]
[366702529,1750415532255,-1546.64,0.00026575,4]
[366702530,1750415532266,-490.0,0.00026575,4]
[366702531,1750415532278,-952.09,0.00026575,4]
[366702532,1750415532290,-2556.54,0.00026575,4]
[366702533,1750415532301,-624.46089765,0.00026575,4]
[366702534,1750415532312,-490.0,0.00026575,4]
[366702535,1750415532324,-1078.67,0.00026575,4]
[366702536,1750415532335,-1698.38,0.00026575,4]
[366702537,1750415532346,-7770.54,0.00026575,4]
[366702538,1750415532358,-490.0,0.00026575,4]
[366702539,1750415532369,-490.0,0.00026575,4]
[366702540,1750415532379,-490.0,0.00026575,4]
[366702541,1750415532391,-713.18,0.00026575,4]
[366702542,1750415532402,-490.0,0.00026575,4]
[366702543,1750415532413,-490.0,0.00026575,4]
[366702544,1750415532425,-565.57,0.00026575,4]
[366702545,1750415532436,-1078.51,0.00026575,4]
[366702546,1750415532448,-490.0,0.00026575,4]
[366702547,1750415532459,-490.0,0.00026575,4]
[366702548,1750415532470,-490.0,0.00026575,4]
[366702549,1750415532482,-511.43,0.00026575,4]
[366702550,1750415532493,-158.60480261,0.00026575,30]
[366702551,1750415532505,-1165.36,0.00026575,2]
[366702552,1750415532515,-340.54121,0.00026585,7]
[366702553,1750415532533,-340.541217,0.00026585,7]
[366702554,1750415532545,-174.163115,0.00026585,7]
[366702555,1750415532558,-174.163124,0.00026585,7]
[366702556,1750415532570,-152.41121,0.00026585,7]
[366702557,1750415532582,-152.411219,0.00026585,7]
[366702558,1750415532593,-807.151368,0.00026585,7]
[366702559,1750415532605,-807.151378,0.00026585,7]
[366702560,1750415532617,-316.41950902,0.00026585,4]
[366702561,1750415532629,-414.404727,0.00026585,7]
[366702562,1750415532641,-414.404734,0.00026585,7]
[366702563,1750415532654,-336.80236656,0.00026585,4]
[366702564,1750415533121,-490.0,0.00026585,4]
[366702565,1750415533147,-359.22795996,0.00026585,4]
[366702566,1750415533157,-383.76613534,0.00026585,4]
[366702567,1750415533167,-490.0,0.00026585,4]
[366702568,1750415533177,-490.0,0.00026585,4]
[366702569,1750415533188,-248.936062,0.00026585,7]
[366702570,1750415533198,-490.0,0.00026585,4]
[366702571,1750415533209,-248.936052,0.00026585,7]
[366702572,1750415533222,-490.0,0.00026585,4]
[366702573,1750415533231,-490.0,0.00026585,4]
[366702574,1750415533242,-490.0,0.00026585,4]
[366702575,1750415533252,-490.0,0.00026585,4]
[366702576,1750415533262,-490.0,0.00026585,4]
[366702577,1750415533272,-490.0,0.00026585,4]
[366702578,1750415533282,-490.0,0.00026585,4]
[366702579,1750415533291,-490.0,0.00026585,4]
[366702580,1750415533301,-490.0,0.00026585,4]
[366702581,1750415533311,-490.0,0.00026585,4]
[366702582,1750415533322,-490.0,0.00026585,4]
[366702583,1750415533333,-490.0,0.00026585,4]
[366702584,1750415533344,-490.0,0.00026585,4]
[366702585,1750415533356,-490.0,0.00026585,4]
[366702586,1750415533367,-490.0,0.00026585,4]
[366702587,1750415533377,-490.0,0.00026585,4]
[366702588,1750415533388,-599.18752486,0.00026585,4]
[366702589,1750415533399,-490.0,0.00026585,4]
[366702590,1750415533409,-490.0,0.00026585,4]
[366702591,1750415533421,-303.833978,0.00026585,7]
[366702592,1750415533431,-303.833985,0.00026585,7]
[366702593,1750415533442,-490.0,0.00026585,4]
[366702594,1750415533453,-709.67,0.00026585,4]
[366702595,1750415533463,-490.0,0.00026585,4]
[366702596,1750415533474,-490.0,0.00026585,4]
[366702597,1750415533486,-442.40543948,0.00026585,4]
[366702598,1750415533497,-490.0,0.00026585,4]
[366702599,1750415533509,-151.0,0.00026585,7]
[366702600,1750415533521,-716.73,0.00026585,4]
[366702601,1750415533532,-490.0,0.00026585,4]
[366702602,1750415533544,-557.51640922,0.00026585,4]
[366702603,1750415533557,-613.84791108,0.00026585,4]
[366702604,1750415533567,-879.88,0.00026585,4]
[366702605,1750415533578,-490.0,0.00026585,4]
[366702606,1750415533590,-490.0,0.00026585,4]
[366702607,1750415533601,-490.0,0.00026585,4]
[366702608,1750415533612,-490.0,0.00026585,4]
[366702609,1750415533622,-490.0,0.00026585,4]
[366702610,1750415533632,-490.0,0.00026585,4]
[366702611,1750415533643,-490.0,0.00026585,4]
[366702612,1750415533654,-490.0,0.00026585,4]
[366702613,1750415533664,-490.0,0.00026585,4]
[366702614,1750415533675,-490.0,0.00026585,4]
[366702615,1750415533685,-490.0,0.00026585,4]
[366702616,1750415533695,-490.0,0.00026585,4]
[366702617,1750415533705,-490.0,0.00026585,4]
[366702618,1750415533715,-490.0,0.00026585,4]
[366702619,1750415533726,-1218.9,0.00026585,4]
[366702620,1750415533736,-901.28,0.00026585,4]
[366702621,1750415533746,-507.19,0.00026585,4]
[366702622,1750415533756,-490.0,0.00026585,4]
[366702623,1750415533766,-490.0,0.00026585,4]
[366702624,1750415533776,-490.0,0.00026585,4]
[366702625,1750415533785,-584.6,0.00026585,4]
[366702626,1750415533795,-490.0,0.00026585,4]
[366702627,1750415533806,-490.0,0.00026585,4]
[366702628,1750415533818,-490.0,0.00026585,4]
[366702629,1750415533828,-490.0,0.00026585,4]
[366702630,1750415533839,-490.0,0.00026585,4]
[366702631,1750415533851,-490.0,0.00026585,4]
[366702632,1750415533862,-490.0,0.00026585,4]
[366702633,1750415533872,-490.0,0.00026585,4]
[366702634,1750415533882,-490.0,0.00026585,4]
[366702635,1750415533892,-490.0,0.00026585,4]
[366702636,1750415533902,-490.0,0.00026585,4]
[366702637,1750415533912,-490.0,0.00026585,4]
[366702638,1750415533922,-624.83,0.00026585,4]
[366702639,1750415533934,-490.0,0.00026585,4]
[366702640,1750415533943,-526.21289307,0.00026585,4]
[366702641,1750415533954,-490.0,0.00026585,4]
[366702642,1750415533964,-947.23,0.00026585,4]
[366702643,1750415533974,-497.34,0.00026585,4]
[366702644,1750415533984,-1160.0,0.00026585,4]
[366702645,1750415533994,-682.25,0.00026585,4]
[366702646,1750415534003,-676.69,0.00026585,4]
[366702647,1750415534013,-592.61460721,0.00026585,4]
[366702648,1750415534022,-798.57,0.00026585,4]
[366702649,1750415534032,-490.0,0.00026585,4]
[366702650,1750415534042,-490.0,0.00026585,4]
[366702651,1750415534052,-490.0,0.00026585,4]
[366702652,1750415534062,-490.0,0.00026585,4]
[366702653,1750415534072,-490.0,0.00026585,4]
[366702654,1750415534082,-490.0,0.00026585,4]
[366702655,1750415534092,-490.0,0.00026585,4]
[366702656,1750415534102,-490.0,0.00026585,4]
[366702657,1750415534113,-994.26,0.00026585,4]
[366702658,1750415534125,-490.0,0.00026585,4]
[366702659,1750415534135,-490.0,0.00026585,4]
[366702660,1750415534145,-504.86,0.00026585,4]
[366702661,1750415534155,-1262.16,0.00026585,4]
[366702662,1750415534165,-490.0,0.00026585,4]
[366702663,1750415534175,-526.89,0.00026585,4]
[366702664,1750415534186,-490.0,0.00026585,4]
[366702665,1750415534196,-490.0,0.00026585,4]
[366702666,1750415534208,-562.08,0.00026585,4]
[366702667,1750415534219,-490.0,0.00026585,4]
[366702668,1750415534229,-545.75,0.00026585,4]
[366702669,1750415534239,-1061.69,0.00026585,4]
[366702670,1750415534249,-490.0,0.00026585,4]
[366702671,1750415534259,-809.96,0.00026585,4]
[366702672,1750415534270,-631.0,0.00026585,4]
[366702673,1750415534281,-1378.13,0.00026585,4]
[366702674,1750415534292,-490.0,0.00026585,4]
[366702675,1750415534303,-490.0,0.00026585,4]
[366702676,1750415534313,-490.0,0.00026585,4]
[366702677,1750415534323,-490.0,0.00026585,4]
[366702678,1750415534334,-490.0,0.00026585,4]
[366702679,1750415534346,-559.26,0.00026585,4]
[366702680,1750415534357,-490.0,0.00026585,4]
[366702681,1750415534367,-707.03,0.00026585,4]
[366702682,1750415534376,-490.0,0.00026585,4]
[366702683,1750415534386,-2021.51,0.00026585,4]
[366702684,1750415534396,-547.36,0.00026585,4]
[366702685,1750415534406,-1831.85,0.00026585,4]
[366702686,1750415534416,-606.95,0.00026585,4]
[366702687,1750415534425,-490.0,0.00026585,4]
[366702688,1750415534435,-1476.65,0.00026585,4]
[366702689,1750415534445,-490.0,0.00026585,4]
[366702690,1750415534457,-490.0,0.00026585,4]
[366702691,1750415534468,-490.0,0.00026585,4]
[366702692,1750415534477,-490.0,0.00026585,4]
[366702693,1750415534488,-490.0,0.00026585,4]
[366702694,1750415534498,-490.0,0.00026585,4]
[366702695,1750415534507,-490.0,0.00026585,4]
[366702696,1750415534517,-1005.12,0.00026585,4]
[366702697,1750415534527,-1516.56,0.00026585,4]
[366702698,1750415534537,-600.95,0.00026585,4]
[366702699,1750415534547,-490.0,0.00026585,4]
[366702700,1750415534556,-490.0,0.00026585,4]
[366702701,1750415534566,-490.0,0.00026585,4]
[366702702,1750415534576,-490.0,0.00026585,4]
[366702703,1750415534586,-302.3,0.00026585,4]
[366702704,1750415534596,-1853.92,0.00026585,4]
[366702705,1750415534606,-490.0,0.00026585,4]
[366702706,1750415534616,-490.0,0.00026585,4]
[366702707,1750415534626,-1207.48,0.00026585,4]
[366702708,1750415534636,-970.42,0.00026585,4]
[366702709,1750415534646,-490.0,0.00026585,4]
[366702710,1750415534656,-1085.47,0.00026585,4]
[366702711,1750415534666,-555.86,0.00026585,4]
[366702712,1750415534676,-1321.89,0.00026585,4]
[366702713,1750415534685,-907.27,0.00026585,4]
[366702714,1750415534695,-490.0,0.00026585,4]
[366702715,1750415534704,-490.0,0.00026585,4]
[366702716,1750415534714,-490.0,0.00026585,4]
[366702717,1750415534726,-318.07195833,0.00026585,4]
[366702718,1750415534736,-490.0,0.00026585,4]
[366702719,1750415534746,-490.0,0.00026585,4]
[366702720,1750415534756,-490.0,0.00026585,4]
[366702721,1750415534766,-490.0,0.00026585,4]
[366702722,1750415534776,-1835.37,0.00026585,4]
[366702723,1750415534787,-490.0,0.00026585,4]
[366702724,1750415534797,-490.0,0.00026585,4]
[366702725,1750415534807,-556.59,0.00026585,4]
[366702726,1750415534817,-1052.99,0.00026585,4]
[366702727,1750415534827,-490.0,0.00026585,4]
[366702728,1750415534837,-567.01,0.00026585,4]
[366702729,1750415534847,-492.0,0.00026585,4]
[366702730,1750415534858,-819.36,0.00026585,4]
[366702731,1750415534868,-2175.07,0.00026585,4]
[366702732,1750415534878,-490.0,0.00026585,4]
[366702733,1750415534888,-789.56,0.00026585,4]
[366702734,1750415534898,-1474.82,0.00026585,4]
[366702735,1750415534908,-490.0,0.00026585,4]
[366702736,1750415534918,-490.0,0.00026585,4]
[366702737,1750415534930,-1752.57,0.00026585,4]
[366702738,1750415534940,-490.0,0.00026585,4]
[366702739,1750415534950,-490.0,0.00026585,4]
[366702740,1750415534960,-490.0,0.00026585,4]
[366702741,1750415534970,-2581.66,0.00026585,4]
[366702742,1750415534980,-490.0,0.00026585,4]
[366702743,1750415534991,-1705.52,0.00026585,4]
[366702744,1750415535001,-490.0,0.00026585,4]
[366702745,1750415535011,-490.0,0.00026585,4]
[366702746,1750415535020,-1306.7,0.00026585,4]
[366702747,1750415535030,-490.0,0.00026585,4]
[366702748,1750415535042,-525.6,0.00026585,4]
[366702749,1750415535052,-490.0,0.00026585,4]
[366702750,1750415535062,-737.94,0.00026585,4]
[366702751,1750415535073,-490.0,0.00026585,4]
[366702752,1750415535083,-490.0,0.00026585,4]
[366702753,1750415535094,-490.0,0.00026585,4]
[366702754,1750415535105,-616.11,0.00026585,4]
[366702755,1750415535117,-749.2,0.00026585,4]
[366702756,1750415535127,-490.0,0.00026585,4]
[366702757,1750415535138,-733.41,0.00026585,4]
[366702758,1750415535149,-1450.49,0.00026585,4]
[366702759,1750415535158,-490.0,0.00026585,4]
[366702760,1750415535168,-2517.34,0.00026585,4]
[366702761,1750415535178,-490.0,0.00026585,4]
[366702762,1750415535188,-490.0,0.00026585,4]
[366702763,1750415535198,-647.98,0.00026585,4]
[366702764,1750415535208,-1420.61,0.00026585,4]
[366702765,1750415535218,-666.21,0.00026585,4]
[366702766,1750415535228,-490.0,0.00026585,4]
[366702767,1750415535239,-798.3,0.00026585,4]
[366702768,1750415535249,-490.0,0.00026585,4]
[366702769,1750415535259,-490.0,0.00026585,4]
[366702770,1750415535270,-490.0,0.00026585,4]
[366702771,1750415535279,-490.0,0.00026585,4]
[366702772,1750415535289,-490.0,0.00026585,4]
[366702773,1750415535299,-629.3,0.00026585,4]
[366702774,1750415535309,-744.22,0.00026585,4]
[366702775,1750415535319,-490.0,0.00026585,4]
[366702776,1750415535329,-824.71,0.00026585,4]
[366702777,1750415535340,-1579.86,0.00026585,4]
[366702778,1750415535350,-490.0,0.00026585,4]
[366702779,1750415535359,-490.0,0.00026585,4]
[366702780,1750415535369,-490.0,0.00026585,4]
[366702781,1750415535380,-1499.44,0.00026585,4]
[366702782,1750415535390,-509.05,0.00026585,4]
[366702783,1750415535400,-2238.49,0.00026585,4]
[366702784,1750415535409,-490.0,0.00026585,4]
[366702785,1750415535419,-597.0,0.00026585,4]
[366702786,1750415535429,-490.0,0.00026585,4]
[366702787,1750415535439,-490.0,0.00026585,4]
[366702788,1750415535449,-490.0,0.00026585,4]
[366702789,1750415535460,-933.51,0.00026585,4]
[366702790,1750415535470,-490.0,0.00026585,4]
[366702791,1750415535480,-490.0,0.00026585,4]
[366702792,1750415535489,-822.58,0.00026585,4]
[366702793,1750415535499,-838.77,0.00026585,4]
[366702794,1750415535509,-504.68,0.00026585,4]
[366702795,1750415535519,-507.81,0.00026585,4]
[366702796,1750415535529,-490.0,0.00026585,4]
[366702797,1750415535538,-490.0,0.00026585,4]
[366702798,1750415535548,-490.0,0.00026585,4]
[366702799,1750415535559,-572.5,0.00026585,4]
[366702800,1750415535569,-490.0,0.00026585,4]
[366702801,1750415535681,-490.0,0.00026585,4]
[366702802,1750415535692,-1129.55,0.00026585,4]
[366702803,1750415535702,-858.91,0.00026585,4]
[366702804,1750415535712,-490.0,0.00026585,4]
[366702805,1750415535722,-800.69,0.00026585,4]
[366702806,1750415535732,-1036.77,0.00026585,4]
[366702807,1750415535745,-490.0,0.00026585,4]
[366702808,1750415535756,-1310.63,0.00026585,4]
[366702809,1750415535766,-490.0,0.00026585,4]
[366702810,1750415535775,-867.83,0.00026585,4]
[366702811,1750415535785,-545.19,0.00026585,4]
[366702812,1750415535795,-1236.78,0.00026585,4]
[366702813,1750415535805,-490.0,0.00026585,4]
[366702814,1750415535816,-490.0,0.00026585,4]
[366702815,1750415535827,-490.0,0.00026585,4]
[366702816,1750415535837,-490.0,0.00026585,4]
[366702817,1750415535847,-509.27,0.00026585,4]
[366702818,1750415535858,-490.0,0.00026585,4]
[366702819,1750415535868,-490.0,0.00026585,4]
[366702820,1750415535877,-1804.01,0.00026585,4]
[366702821,1750415535887,-329.98750229,0.00026585,4]
[366702822,1750415535898,-490.0,0.00026585,4]
[366702823,1750415535908,-490.0,0.00026585,4]
[366702824,1750415535918,-1718.47,0.00026585,4]
[366702825,1750415535928,-490.0,0.00026585,4]
[366702826,1750415535940,-528.49,0.00026585,4]
[366702827,1750415535950,-490.0,0.00026585,4]
[366702828,1750415535959,-808.69,0.00026585,4]
[366702829,1750415535970,-490.0,0.00026585,4]
[366702830,1750415535979,-393.65074926,0.00026585,4]
[366702831,1750415535990,-490.0,0.00026585,4]
[366702832,1750415535999,-490.0,0.00026585,4]
[366702833,1750415536010,-726.13,0.00026585,4]
[366702834,1750415536019,-490.0,0.00026585,4]
[366702835,1750415536029,-490.0,0.00026586,4]
[366702836,1750415536039,-490.0,0.00026586,4]
[366702837,1750415536049,-924.0,0.00026586,4]
[366702838,1750415536059,-490.0,0.00026586,4]
[366702839,1750415536069,-490.0,0.00026586,4]
[366702840,1750415536080,-490.0,0.00026586,4]
[366702841,1750415536090,-490.0,0.00026586,4]
[366702842,1750415536100,-490.0,0.00026586,4]
[366702843,1750415536110,-555.64,0.00026586,4]
[366702844,1750415536127,-490.0,0.00026586,4]
[366702845,1750415536137,-560.67,0.00026586,4]
[366702846,1750415536147,-714.6,0.00026586,4]
[366702847,1750415536164,-490.0,0.00026586,4]
[366702848,1750415536174,-490.0,0.00026586,4]
[366702849,1750415536184,-584.97,0.00026586,4]
[366702850,1750415536194,-490.0,0.00026586,4]
[366702851,1750415536205,-528.72,0.00026586,4]
[366702852,1750415536215,-490.0,0.00026586,4]
[366702853,1750415536225,-490.0,0.00026586,4]
[366702854,1750415536235,-490.0,0.00026586,4]
[366702855,1750415536245,-490.0,0.00026586,4]
[366702856,1750415536255,-490.0,0.00026586,4]
[366702857,1750415536264,-490.0,0.00026586,4]
[366702858,1750415536274,-490.0,0.00026586,4]
[366702859,1750415536283,-490.0,0.00026586,4]
[366702860,1750415536293,-595.37,0.00026586,4]
[366702861,1750415536303,-325.210147,0.00026588,7]
[366702862,1750415536313,-325.210147,0.00026588,7]
[366702863,1750415536323,-151.0,0.00026589,7]
[366702864,1750415536333,-151.0,0.00026589,7]
[366702865,1750415536343,-182.537077,0.00026589,7]
[366702866,1750415536353,-182.537077,0.00026589,7]
[366702867,1750415536362,-151.0,0.00026589,7]
[366702868,1750415536372,-3122.501418,0.00026589,7]
[366702869,1750415536382,-3122.501418,0.00026589,7]
[366702870,1750415536391,-249.55227,0.00026591,7]
[366702871,1750415536401,-249.55227,0.00026591,7]
[366702872,1750415536411,-820.27178,0.00026591,7]
[366702873,1750415536421,-820.27178,0.00026591,7]
[366702874,1750415536431,-282.36416,0.00026591,7]
[366702875,1750415536441,-190.656167,0.00026591,7]
[366702876,1750415536451,-190.656167,0.00026591,7]
[366702877,1750415536461,-667.338228,0.00026591,7]
[366702878,1750415536471,-667.338228,0.00026591,7]
[366702879,1750415536482,-265.974466,0.000266,7]
[366702880,1750415536492,-151.0,0.000266,7]
[366702881,1750415536501,-152.4232,0.000266,7]
[366702882,1750415536511,-330.739152,0.000266,7]
[366702883,1750415536522,-330.739152,0.000266,7]
[366702884,1750415536532,-151.0,0.000266,7]
[366702885,1750415536541,-267.958731,0.000266,7]
[366702886,1750415536551,-267.958731,0.000266,7]
[366702887,1750415536561,-851.127774,0.000266,7]
[366702888,1750415536570,-162.328787,0.000266,7]
[366702889,1750415536579,-162.32878627,0.000266,7]
[366702890,1750415536589,-360.274223,0.000266,7]
[366702891,1750415536599,-360.274216,0.000266,7]
[366702892,1750415536608,-151.0,0.000266,7]
[366702893,1750415536617,-818.371447,0.000266,7]
[366702894,1750415536627,-498.97563,0.000266,7]
[366702895,1750415536636,-498.975626,0.000266,7]
[366702896,1750415536646,-563.488081,0.000266,7]
[366702897,1750415536659,-563.488086,0.000266,7]
[366702898,1750415536668,-1047.540513,0.000266,7]
[366702899,1750415536678,-1047.540508,0.000266,7]
[366702900,1750415536687,-161.74,0.000266,2]
[366702901,1750415536698,-168.0,0.00026615,2]
[366702902,1750415536707,-151.0,0.00026616,7]
[366702903,1750415536717,-775.47665243,0.00026624,15]
[366702904,1750415536727,-500.0,0.0002667,2]
[366702905,1750415536736,-500.0,0.0002667,2]
[366702906,1750415536746,-2000.0,0.00026676,2]
[366702907,1750415536756,-151.0,0.0002668,7]
[366702908,1750415536765,-204.379099,0.0002668,7]
[366702909,1750415536775,-204.379099,0.0002668,7]
[366702910,1750415536785,-151.0,0.0002668,7]
[366702911,1750415536794,-1127.639614,0.0002668,7]
[366702912,1750415536804,-158.60480261,0.00026685,30]
[366702913,1750415536813,-155.075393,0.00026687,7]
[366702914,1750415536823,-155.075393,0.00026687,7]
[366702915,1750415536833,-151.0,0.00026687,7]
[366702916,1750415536842,-191.446118,0.00026687,7]
[366702917,1750415536852,-191.446118,0.00026687,7]
[366702918,1750415536862,-1541.087362,0.00026687,7]
[366702919,1750415536871,-1541.087362,0.00026687,7]
[366702920,1750415536881,-262.505151,0.00026687,7]
[366702921,1750415536890,-151.0,0.00026705,7]
[366702922,1750415536900,-151.0,0.00026705,7]
[366702923,1750415536910,-532.770792,0.00026705,7]
[366702924,1750415536919,-532.770792,0.00026705,7]
[366702925,1750415536930,-2000.0,0.00026706,60]
[366702926,1750415536939,-500.0,0.00026706,120]
[366702927,1750415536949,-586.0,0.0002671,7]
[366702928,1750415536959,-150.0,0.00026711,2]
[366702929,1750415536968,-191.446118,0.00026718,7]
[366702930,1750415536978,-191.446113,0.00026718,7]
[366702931,1750415536988,-1541.087362,0.00026718,7]
[366702932,1750415536998,-1541.087372,0.00026718,7]
[366702933,1750415537007,-262.505154,0.00026718,7]
[366702934,1750415537017,-151.0,0.00026722,7]
[366702935,1750415537027,-151.0,0.00026722,7]
[366702936,1750415537037,-219.865045,0.00026722,7]
[366702937,1750415537047,-316.98,0.00026722,7]
[366702938,1750415537056,-316.98,0.00026722,7]
[366702939,1750415537066,-152.76443,0.00026731,7]
[366702940,1750415537076,-258.53542,0.00026731,7]
[366702941,1750415537086,-258.53542,0.00026731,7]
[366702942,1750415537095,-151.0,0.00026731,7]
[366702943,1750415537105,-398.759128,0.00026732,7]
[366702944,1750415537114,-398.759128,0.00026732,7]
[366702945,1750415537124,-151.0,0.00026732,7]
[366702946,1750415537134,-262.658617,0.00026732,7]
[366702947,1750415537144,-262.658617,0.00026732,7]
[366702948,1750415537154,-151.0,0.00026732,7]
[366702949,1750415537164,-178.815455,0.00026732,7]
[366702950,1750415537174,-178.815455,0.00026732,7]
[366702951,1750415537184,-190.656167,0.00026732,7]
[366702952,1750415537195,-190.656167,0.00026732,7]
[366702953,1750415537205,-182.537077,0.00026732,7]
[366702954,1750415537215,-182.537077,0.00026732,7]
[366702955,1750415537224,-346.871646,0.00026732,7]
[366702956,1750415537236,-346.871646,0.00026732,7]
[366702957,1750415537245,-151.0,0.00026732,7]
[366702958,1750415537255,-151.0,0.00026732,7]
[366702959,1750415537264,-3122.501418,0.00026732,7]
[366702960,1750415537273,-3122.501418,0.00026732,7]
[366702961,1750415537283,-667.338228,0.00026732,7]
[366702962,1750415537293,-667.338228,0.00026732,7]
[366702963,1750415537304,-166.142536,0.00026733,7]
[366702964,1750415537314,-166.142536,0.00026733,7]
[366702965,1750415537324,-249.55227,0.00026733,7]
[366702966,1750415537335,-249.55227,0.00026733,7]
[366702967,1750415537345,-851.127774,0.00026733,7]
[366702968,1750415537355,-820.27178,0.00026733,7]
[366702969,1750415537365,-820.27178,0.00026733,7]
[366702970,1750415537375,-151.0,0.00026733,7]
[366702971,1750415537385,-156.587,0.00026734,2]
[366702972,1750415537395,-163.61274136,0.00026739,2]
[366702973,1750415537406,-159.4653976,0.00026749,2]
[366702974,1750415537416,-220.11,0.00026759,4]
[366702975,1750415537426,-263.095536,0.00026761,7]
[366702976,1750415537436,-151.0,0.00026761,7]
[366702977,1750415537447,-316.98,0.00026761,7]
[366702978,1750415537457,-316.98,0.00026761,7]
[366702979,1750415537467,-166.142536,0.00026774,7]
[366702980,1750415537477,-166.142536,0.00026774,7]
[366702981,1750415537487,-258.53542,0.00026774,7]
[366702982,1750415537498,-258.53542,0.00026774,7]
[366702983,1750415537508,-155.075393,0.00026774,7]
[366702984,1750415537519,-155.075393,0.00026774,7]
[366702985,1750415537529,-151.0,0.00026774,7]
[366702986,1750415537540,-12669.6531614,0.00026776,2]
[366702987,1750415537552,-23944.4295613,0.00026776,2]
[366702988,1750415537563,-260992.528178,0.00026776,2]
[366702989,1750415537573,-94964.3366587,0.00026776,2]
[366702990,1750415537584,-8369.2107058,0.00026776,2]
[366702991,1750415537594,-500.0,0.00026785,30]
[366702992,1750415537605,-500.0,0.00026785,30]
[366702993,1750415537615,-500.0,0.00026785,30]
[366702994,1750415537625,-500.0,0.00026785,30]
[366702995,1750415537637,-500.0,0.00026785,30]
[366702996,1750415537648,-500.0,0.00026785,30]